bitfinex-derivatives/quotes_SOLF0:USTF0_20250111
["timestamp","ask_amount","ask_price","bid_price","bid_amount"]
[1736580843619,2.6918,185.8,185.75,7.2144451]
[1736580845521,2.6918,185.8,185.75,9.9068451]
[1736580848325,2.6922,185.77,185.73,7.2144451]
[1736580848516,7.2144451,185.77,185.71,7.2144451]
[1736580848718,7.2144451,185.77,185.7,1.6667]
[1736580849724,2.6924,185.75,185.7,4.3598]
[1736580851621,7.2144451,185.77,185.7,4.3598]
[1736580851622,7.2144451,185.77,185.71,7.2144451]
[1736580851824,2.6921,185.78,185.73,7.2144451]
[1736580852018,1.3414,185.85,185.75,7.2144451]
[1736580852222,7.2144451,185.83,185.75,7.2144451]
[1736580852522,2.6916,185.81,185.75,7.2144451]
[1736580852918,2.6916,185.81,185.75,9.9068451]
[1736580853122,9.9060451,185.81,185.75,9.9068451]
[1736580854023,7.2144451,185.81,185.75,7.2144451]
[1736580854224,2.692,185.78,185.73,9.9070451]
[1736580855926,7.2144451,185.77,185.71,9.9073451]
[1736580856628,2.6925,185.75,185.7,4.3598]
[1736580857027,2.6925,185.75,185.7,1.6667]
[1736580857724,7.2144451,185.77,185.7,1.6667]
[1736580857924,2.6926,185.74,185.7,1.6667]
[1736580858326,7.2144451,185.77,185.7,1.6667]
[1736580858530,7.2144451,185.77,185.71,7.2144451]
[1736580859024,9.9067451,185.77,185.71,9.9074451]
[1736580859425,7.2144451,185.77,185.71,9.9074451]
[1736580859625,2.6923,185.76,185.71,9.9074451]
[1736580860627,2.6923,185.76,185.71,7.2144451]
[1736580860925,2.6925,185.75,185.71,7.2144451]
[1736580862725,2.6925,185.75,185.7,1.6667]
[1736580862925,7.2144451,185.77,185.7,1.6667]
[1736580863230,2.6927,185.73,185.7,1.6667]
[1736580864527,2.6926,185.74,185.7,1.6667]
[1736580866333,2.6923,185.76,185.71,7.2144451]
[1736580874734,2.6923,185.76,185.7,4.3597]
[1736580878035,2.6923,185.76,185.71,7.2144451]
[1736580878241,2.6923,185.76,185.7,4.3597]
[1736580880943,1.3414,185.85,185.73,2.6927]
[1736580881137,1.3414,185.85,185.73,7.2144451]
[1736580881333,7.2144451,185.81,185.73,7.2144451]
[1736580881741,9.9061451,185.81,185.75,2.6924]
[1736580883044,7.2144451,185.81,185.75,7.2144451]
[1736580883239,2.6913,185.83,185.78,2.692]
[1736580883449,9.9057451,185.83,185.78,2.692]
[1736580885144,2.6911,185.84,185.79,2.6918]
[1736580886338,2.6915,185.82,185.77,8.7821451]
[1736580886542,7.2144451,185.81,185.77,1.5677]
[1736580887046,7.2144451,185.83,185.77,1.5677]
[1736580887647,7.2144451,185.83,185.78,7.2144451]
[1736580890247,9.9057451,185.83,185.78,9.9064451]
[1736580890545,9.9057451,185.83,185.77,1.5677]
[1736580892247,9.9057451,185.83,185.77,4.2598]
[1736580892748,2.6913,185.83,185.77,4.2598]
[1736580893448,2.6913,185.83,185.78,2.6919]
[1736580893747,2.6913,185.83,185.78,9.9063451]
[1736580894344,7.2144451,185.84,185.78,7.2144451]
[1736580894549,7.2144451,185.84,185.77,1.5677]
[1736580894550,2.6914,185.82,185.77,4.2598]
[1736580898053,7.2144451,185.84,185.77,4.2598]
[1736580898255,57.68854057,185.89,185.8,7.2144451]
[1736580898549,57.68854057,185.89,185.83,7.2144451]
[1736580898754,2.6907,185.87,185.81,2.6914]
[1736580898948,2.6907,185.87,185.82,7.2144451]
[1736580899143,2.6907,185.87,185.77,1.5677]
[1736580899344,2.6908,185.86,185.81,7.2144451]
[1736580899550,7.2144451,185.86,185.79,7.2144451]
[1736580899953,2.6913,185.83,185.79,7.2144451]
[1736580900353,7.2144451,185.84,185.79,7.2144451]
[1736580901150,9.9055451,185.84,185.79,7.2144451]
[1736580901748,57.68854057,185.89,185.79,7.2144451]
[1736580901954,64.90298567,185.89,185.83,7.2144451]
[1736580902753,57.68854057,185.89,185.83,7.2144451]
[1736580903056,5.79840481,185.9,185.83,7.2144451]
[1736580903454,5.79840481,185.9,185.85,9.9053451]
[1736580903957,15.70324991,185.9,185.85,7.2144451]
[1736580904250,15.70324991,185.9,185.83,2.6911]
[1736580904454,13.01284991,185.9,185.83,9.9055451]
[1736580906058,2.6906,185.88,185.83,9.9055451]
[1736580908660,2.6906,185.88,185.83,7.2144451]
[1736580908854,7.2144451,185.88,185.79,5.56]
[1736580909053,7.2144451,185.86,185.8,7.2144451]
[1736580909456,2.691,185.85,185.8,7.2144451]
[1736580909758,7.2144451,185.86,185.8,7.2144451]
[1736580910458,7.2144451,185.84,185.77,1.5677]
[1736580910654,7.2144451,185.82,185.76,3.2535]
[1736580911356,2.6916,185.81,185.76,5.9458]
[1736580911860,2.6916,185.81,185.76,3.2535]
[1736580912061,2.6916,185.81,185.76,1.6004]
[1736580913255,2.6914,185.83,185.76,1.6004]
[1736580913462,7.2144451,185.82,185.76,1.6004]
[1736580914261,15.91329205,185.89,185.77,9.9065451]
[1736580914556,7.2144451,185.84,185.77,9.9065451]
[1736580914761,8.1134,185.89,185.77,9.9065451]
[1736580914957,7.2144451,185.82,185.77,9.9065451]
[1736580915755,2.6916,185.81,185.76,1.6004]
[1736580915960,7.2144451,185.8,185.73,7.2144451]
[1736580916662,2.6919,185.79,185.73,9.9070451]
[1736580918463,2.692,185.78,185.73,9.9070451]
[1736580920660,2.692,185.78,185.73,7.2144451]
[1736580924273,2.692,185.78,185.73,9.9071451]
[1736580924668,2.692,185.78,185.73,7.2144451]
[1736580925367,2.6921,185.77,185.73,7.2144451]
[1736580926767,7.2144451,185.8,185.73,7.2144451]
[1736580927273,7.2144451,185.78,185.71,9.9074451]
[1736580928168,2.6922,185.77,185.71,9.9074451]
[1736580930574,2.6922,185.77,185.72,2.6928]
[1736580936788,7.80898017,185.83,185.75,7.2144451]
[1736580937183,7.2144451,185.83,185.77,7.2144451]
[1736580938086,2.6914,185.82,185.77,9.9065451]
[1736580943688,7.2144451,185.83,185.75,7.2144451]
[1736580943992,2.6917,185.8,185.75,7.2144451]
[1736580944685,7.2144451,185.81,185.75,2.6924]
[1736580944892,2.6918,185.79,185.75,2.6924]
[1736580945094,7.2144451,185.81,185.75,2.6924]
[1736580945489,2.6917,185.8,185.75,2.6924]
[1736580946790,2.6918,185.79,185.75,2.6924]
[1736580946991,7.2144451,185.79,185.73,9.9070451]
[1736580947396,2.692,185.78,185.73,7.2144451]
[1736580947585,2.692,185.78,185.74,2.6926]
[1736580947996,7.2144451,185.79,185.74,2.6926]
[1736580948295,9.9063451,185.79,185.74,2.6926]
[1736580951692,2.6919,185.79,185.74,2.6926]
[1736580961402,2.6919,185.79,185.73,9.9071451]
[1736580963902,2.6921,185.78,185.73,2.6927]
[1736580964902,2.6922,185.77,185.72,2.6928]
[1736580965099,7.2144451,185.77,185.69,8.7665451]
[1736580966202,2.6925,185.75,185.7,2.6931]
[1736580968602,2.6923,185.76,185.7,2.6931]
[1736580971609,2.6923,185.76,185.71,2.6929]
[1736580972106,2.6923,185.76,185.71,9.9073451]
[1736580976610,2.6923,185.76,185.71,2.6929]
[1736580977213,2.6926,185.74,185.69,1.5521]
[1736580978103,149.73178592,185.79,185.67,37.34605]
[1736580978104,7.2144451,185.73,185.67,37.34605]
[1736580978911,2.6929,185.72,185.67,37.34605]
[1736580979714,2.6929,185.72,185.67,44.5604951]
[1736580980117,9.9071451,185.73,185.67,47.2540951]
[1736580980315,7.83729461,185.75,185.67,44.5604951]
[1736580980518,7.83729461,185.75,185.69,7.2144451]
[1736580980817,7.2144451,185.74,185.68,1.5798]
[1736580981414,9.9071451,185.74,185.68,4.2731]
[1736580983219,7.2144451,185.74,185.68,4.2731]
[1736580983522,2.6927,185.73,185.68,1.5798]
[1736580984023,7.2144451,185.72,185.68,1.5798]
[1736580984220,9.9073451,185.72,185.68,1.5798]
[1736580987031,7.2144451,185.72,185.68,1.5798]
[1736580987235,2.693,185.71,185.68,1.5798]
[1736580987435,2.693,185.71,185.67,37.34605]
[1736580991032,141.89449131,185.77,185.68,7.2144451]
[1736580991237,7.82179526,185.76,185.72,7.2144451]
[1736580991634,141.89449131,185.77,185.72,7.2144451]
[1736580992235,9.9064451,185.78,185.73,2.6927]
[1736580993336,2.6921,185.77,185.72,9.9072451]
[1736580999136,2.6923,185.76,185.72,9.9072451]
[1736581004345,2.6923,185.76,185.72,7.2144451]
[1736581006238,2.6923,185.76,185.72,9.9072451]
[1736581008646,7.2144451,185.78,185.68,1.6353]
[1736581008848,2.6926,185.74,185.7,7.2144451]
[1736581009147,7.2144451,185.76,185.7,7.2144451]
[1736581009743,2.6925,185.75,185.7,7.2144451]
[1736581009949,7.2144451,185.76,185.7,7.2144451]
[1736581010848,2.6927,185.73,185.7,7.2144451]
[1736581013750,2.6929,185.72,185.7,7.2144451]
[1736581016145,2.693,185.71,185.68,1.6353]
[1736581018452,2.693,185.71,185.68,8.8497451]
[1736581020651,2.693,185.71,185.68,1.6353]
[1736581020853,2.693,185.71,185.68,8.8497451]
[1736581022153,7.2144451,185.74,185.68,8.8497451]
[1736581022350,2.6929,185.72,185.68,8.8497451]
[1736581025156,7.82377409,185.76,185.68,8.8497451]
[1736581025351,2.6924,185.75,185.7,9.9075451]
[1736581031559,2.6929,185.72,185.68,4.3286]
[1736581031959,2.6929,185.72,185.68,1.6353]
[1736581032362,2.6925,185.75,185.69,7.2144451]
[1736581032659,2.6925,185.75,185.68,1.6353]
[1736581032660,149.10893641,185.77,185.71,7.2144451]
[1736581033557,7.2144451,185.77,185.71,7.2144451]
[1736581034049,2.6923,185.76,185.71,9.9074451]
[1736581034755,2.6925,185.75,185.71,2.693]
[1736581035061,7.2144451,185.75,185.69,9.9076451]
[1736581035763,7.2144451,185.75,185.68,4.3287]
[1736581036557,2.6928,185.73,185.68,4.3287]
[1736581036959,2.6928,185.73,185.68,1.6353]
[1736581040967,7.2144451,185.73,185.68,1.6353]
[1736581041175,2.6932,185.7,185.67,37.34605]
[1736581043073,2.6934,185.68,185.67,37.34605]
[1736581044172,2.6934,185.68,185.67,23.87120304]
[1736581050474,9.19244947,185.73,185.67,31.08564814]
[1736581050475,7.84854947,185.73,185.67,31.08564814]
[1736581050882,149.10893641,185.74,185.67,31.08564814]
[1736581051580,149.10893641,185.74,185.68,2.6934]
[1736581051975,7.2144451,185.74,185.68,2.6934]
[1736581052877,2.6929,185.72,185.67,33.77914814]
[1736581057978,2.6931,185.71,185.67,31.08564814]
[1736581058179,7.2144451,185.74,185.67,31.08564814]
[1736581059076,2.6929,185.72,185.67,33.77914814]
[1736581063087,2.6933,185.69,185.67,23.87120304]
[1736581067583,7.83353129,185.74,185.67,23.87120304]
[1736581067788,141.89449131,185.75,185.7,7.2144451]
[1736581067989,141.89449131,185.75,185.71,2.6929]
[1736581068289,141.89449131,185.75,185.7,7.2144451]
[1736581068494,2.6923,185.76,185.7,9.9074451]
[1736581068985,2.6923,185.76,185.71,2.6929]
[1736581069184,2.6921,185.77,185.72,7.2144451]
[1736581072491,2.6923,185.76,185.72,7.2144451]
[1736581074602,2.6923,185.76,185.71,2.6929]
[1736581078495,2.6923,185.76,185.72,3.2433]
[1736581087215,2.6927,185.73,185.67,23.87120304]
[1736581087416,2.6927,185.73,185.67,31.08564814]
[1736581088211,2.6927,185.73,185.68,2.6934]
[1736581089715,2.6927,185.73,185.69,4.3643]
[1736581090107,7.2144451,185.74,185.69,4.3643]
[1736581090310,9.9070451,185.74,185.69,4.3643]
[1736581091416,2.6926,185.74,185.69,4.3643]
[1736581091718,2.6926,185.74,185.69,11.5787451]
[1736581094215,7.83134628,185.79,185.69,8.8854451]
[1736581094420,15.04579138,185.79,185.72,2.6928]
[1736581094616,15.04579138,185.79,185.71,7.2144451]
[1736581095017,2.6923,185.76,185.71,7.2144451]
[1736581095416,7.2144451,185.77,185.69,1.671]
[1736581095613,2.6926,185.74,185.69,11.5787451]
[1736581099229,2.6926,185.74,185.69,8.8854451]
[1736581099429,2.6926,185.74,185.7,2.6931]
[1736581100027,2.6926,185.74,185.7,9.9075451]
[1736581102825,15.04579138,185.77,185.69,1.671]
[1736581103021,7.2144451,185.75,185.68,1.5847]
[1736581103231,7.2144451,185.75,185.68,8.7991451]
[1736581103432,9.9069451,185.75,185.7,2.6931]
[1736581103633,7.2144451,185.75,185.7,2.6931]
[1736581104432,7.2144451,185.75,185.68,11.4925451]
[1736581104633,7.2144451,185.75,185.68,8.7991451]
[1736581104833,2.693,185.71,185.68,8.7991451]
[1736581105129,2.693,185.71,185.68,1.5847]
[1736581105431,7.2144451,185.73,185.68,1.5847]
[1736581106333,2.6929,185.72,185.68,1.5847]
[1736581107030,9.9071451,185.73,185.68,4.2781]
[1736581107233,7.2144451,185.73,185.68,1.5847]
[1736581108129,2.6929,185.72,185.68,1.5847]
[1736581108334,7.2144451,185.73,185.68,1.5847]
[1736581109134,2.693,185.71,185.68,1.5847]
[1736581112233,2.693,185.71,185.68,8.7991451]
[1736581113336,2.6929,185.72,185.68,8.7991451]
[1736581114435,2.6925,185.75,185.69,2.6931]
[1736581115030,141.89449131,185.77,185.7,7.2144451]
[1736581115231,2.6923,185.76,185.71,2.693]
[1736581115839,2.6924,185.75,185.7,9.9075451]
[1736581122638,2.692,185.78,185.74,7.2144451]
[1736581122843,7.85069616,185.79,185.74,7.2144451]
[1736581123038,167.58224901,185.8,185.76,7.2144451]
[1736581123739,52.33377358,185.81,185.76,9.9066451]
[1736581124242,7.2144451,185.83,185.76,9.9066451]
[1736581125143,2.6916,185.81,185.76,9.9066451]
[1736581126642,2.6916,185.81,185.78,7.2144451]
[1736581126836,7.85089018,185.85,185.78,7.2144451]
[1736581127033,7.85089018,185.85,185.8,7.2144451]
[1736581127247,5.6513693,185.86,185.8,7.2144451]
[1736581128244,8.3423693,185.86,185.8,9.9061451]
[1736581128439,5.6513693,185.86,185.82,7.2144451]
[1736581129344,5.6513693,185.86,185.82,9.9058451]
[1736581130343,5.6513693,185.86,185.82,7.2144451]
[1736581135946,12.8658144,185.86,185.8,7.2144451]
[1736581136845,2.691,185.85,185.8,7.2144451]
[1736581137549,2.691,185.85,185.8,9.9061451]
[1736581139247,2.691,185.85,185.8,7.2144451]
[1736581139447,2.691,185.85,185.79,9.9062451]
[1736581140048,2.6913,185.83,185.79,7.2144451]
[1736581140448,2.6913,185.83,185.78,7.2144451]
[1736581141056,7.2144451,185.84,185.76,7.2144451]
[1736581141253,7.2144451,185.82,185.76,7.2144451]
[1736581143057,2.6916,185.81,185.76,9.9067451]
[1736581143556,7.2144451,185.85,185.78,7.2144451]
[1736581145157,2.6913,185.83,185.78,9.9063451]
[1736581146055,2.6911,185.84,185.79,2.6918]
[1736581147347,2.6911,185.84,185.75,4.8241]
[1736581147348,8.3422693,185.86,185.8,9.9059451]
[1736581147550,8.3422693,185.86,185.8,7.2144451]
[1736581149055,8.3422693,185.86,185.8,9.9061451]
[1736581149251,5.6513693,185.86,185.82,7.2144451]
[1736581149755,5.6513693,185.86,185.82,9.9058451]
[1736581150856,5.6513693,185.86,185.82,7.2144451]
[1736581151052,5.6513693,185.86,185.83,2.6912]
[1736581151254,5.6513693,185.86,185.84,7.2144451]
[1736581151546,5.6513693,185.86,185.8,5.48]
[1736581151746,5.6513693,185.86,185.81,7.2144451]
[1736581152549,2.691,185.85,185.81,7.2144451]
[1736581157859,2.6913,185.83,185.77,2.692]
[1736581158052,2.6913,185.83,185.78,7.2144451]
[1736581159056,2.6913,185.83,185.78,9.9064451]
[1736581162054,2.6913,185.83,185.75,4.8241]
[1736581162055,7.2144451,185.83,185.75,4.8241]
[1736581162254,2.6917,185.81,185.76,2.6922]
[1736581164656,2.6914,185.82,185.77,9.9065451]
[1736581164855,15.06367121,185.85,185.77,7.2144451]
[1736581165156,7.2144451,185.85,185.79,7.2144451]
[1736581165760,2.6912,185.84,185.79,7.2144451]
[1736581168763,2.6912,185.84,185.79,9.9062451]
[1736581171267,2.6913,185.83,185.79,7.2144451]
[1736581171970,2.6913,185.83,185.78,2.692]
[1736581185879,2.6911,185.84,185.79,2.6918]
[1736581187180,7.2144451,185.85,185.79,2.6918]
[1736581187375,2.6913,185.83,185.79,2.6918]
[1736581192487,2.6911,185.85,185.8,2.6916]
[1736581196480,2.6911,185.85,185.81,2.6915]
[1736581196686,2.6911,185.85,185.81,9.9059451]
[1736581200987,2.6911,185.85,185.81,2.6915]
[1736581201184,2.6911,185.85,185.81,9.9059451]
[1736581202287,5.6513693,185.86,185.82,2.6913]
[1736581202494,5.6513693,185.86,185.83,7.2144451]
[1736581202688,7.87136818,185.88,185.85,7.2144451]
[1736581203092,174.3830234,185.91,185.85,7.2144451]
[1736581203489,7.88038165,185.9,185.85,7.2144451]
[1736581204090,2.6904,185.89,185.85,9.9054451]
[1736581205284,7.88038165,185.91,185.85,9.9054451]
[1736581205494,10.57058165,185.91,185.85,9.9054451]
[1736581205796,10.57058165,185.91,185.87,7.2144451]
[1736581206295,2.6902,185.91,185.87,7.2144451]
[1736581206996,2.6902,185.91,185.86,2.6908]
[1736581207187,2.6902,185.91,185.86,9.9052451]
[1736581208698,2.6902,185.91,185.87,2.6907]
[1736581210897,2.6903,185.9,185.86,9.9052451]
[1736581211398,2.6903,185.9,185.86,7.2144451]
[1736581212999,2.6903,185.9,185.85,2.691]
[1736581214898,2.6904,185.89,185.84,14.7437451]
[1736581215799,2.6902,185.9,185.85,2.691]
[1736581216003,2.6902,185.9,185.85,9.9054451]
[1736581221405,61.02218552,185.92,185.85,7.2144451]
[1736581221615,63.71228552,185.92,185.85,7.2144451]
[1736581222201,63.71228552,185.92,185.87,2.6906]
[1736581222406,7.2144451,185.91,185.85,7.2144451]
[1736581222606,9.9046451,185.91,185.85,7.2144451]
[1736581222811,7.2144451,185.91,185.85,7.2144451]
[1736581223314,2.6903,185.9,185.85,9.9053451]
[1736581223608,61.02218552,185.92,185.85,7.2144451]
[1736581224007,63.71218552,185.92,185.86,2.6907]
[1736581231120,7.2144451,185.91,185.84,4.8382]
[1736581231419,7.2144451,185.87,185.81,7.2144451]
[1736581231808,2.6909,185.86,185.8,2.6917]
[1736581232015,2.6909,185.86,185.8,9.9061451]
[1736581232420,2.6909,185.86,185.8,2.6917]
[1736581232619,7.2144451,185.83,185.78,2.6918]
[1736581232821,7.2144451,185.83,185.76,4.8706]
[1736581233022,7.2144451,185.83,185.76,12.0850451]
[1736581234121,9.9057451,185.83,185.77,2.6921]
[1736581234316,9.9057451,185.83,185.76,12.0850451]
[1736581234317,7.2144451,185.83,185.76,12.0850451]
[1736581236124,7.2144451,185.83,185.78,2.692]
[1736581237923,7.2144451,185.83,185.78,9.9064451]
[1736581242825,2.6912,185.84,185.78,9.9064451]
[1736581244725,2.6912,185.84,185.79,2.6918]
[1736581246628,2.6912,185.84,185.78,7.2144451]
[1736581248227,2.6912,185.84,185.78,9.9063451]
[1736581255828,2.6912,185.84,185.79,2.6918]
[1736581258930,2.6912,185.84,185.78,7.2144451]
[1736581259730,2.6912,185.84,185.78,9.9063451]
[1736581260329,9.9058451,185.83,185.76,4.8706]
[1736581260528,9.9058451,185.83,185.76,7.5627]
[1736581260835,7.2144451,185.83,185.76,14.7771451]
[1736581261034,2.6914,185.82,185.77,2.692]
[1736581262027,17.75775294,185.86,185.81,2.6915]
[1736581262228,9.9053451,185.86,185.81,2.6915]
[1736581262429,149.10893641,185.88,185.81,2.6915]
[1736581262634,149.10893641,185.88,185.8,7.2144451]
[1736581262835,2.6907,185.87,185.82,2.6914]
[1736581265435,7.2144451,185.88,185.83,2.6912]
[1736581265436,9.9049451,185.88,185.83,2.6912]
[1736581270444,2.6907,185.87,185.83,2.6912]
[1736581275848,2.6907,185.87,185.82,7.2144451]
[1736581279348,2.6909,185.86,185.82,7.2144451]
[1736581282954,7.2144451,185.85,185.78,7.2144451]
[1736581284151,2.6914,185.82,185.78,7.2144451]
[1736581284352,7.2144451,185.83,185.76,4.8706]
[1736581284553,7.2144451,185.81,185.76,4.8706]
[1736581284746,7.2144451,185.81,185.76,3.2848]
[1736581285351,2.692,185.78,185.76,3.2848]
[1736581285856,2.692,185.78,185.74,7.2144451]
[1736581286857,7.2144451,185.79,185.74,7.2144451]
[1736581287156,2.6921,185.77,185.74,7.2144451]
[1736581288447,2.692,185.78,185.74,7.2144451]
[1736581294255,2.692,185.78,185.72,9.9072451]
[1736581296263,7.2144451,185.8,185.72,7.2144451]
[1736581296562,7.2144451,185.76,185.7,3.1066]
[1736581297452,2.6927,185.74,185.7,3.1066]
[1736581303263,2.693,185.71,185.68,1.6839]
[1736581303461,7.2144451,185.72,185.67,23.87120304]
[1736581304167,2.6931,185.7,185.67,23.87120304]
[1736581304565,7.2144451,185.72,185.67,23.87120304]
[1736581306168,2.693,185.71,185.67,23.87120304]
[1736581308665,2.6933,185.69,185.67,23.87120304]
[1736581310372,2.6934,185.68,185.67,23.87120304]
[1736581322277,9.9078451,185.68,185.67,23.87120304]
[1736581322774,9.9078451,185.68,185.67,11.80543025]
[1736581322973,9.9078451,185.68,185.67,3.025e-05]
[1736581326777,7.2144451,185.68,185.59,1.6443]
[1736581326972,7.2144451,185.63,185.59,1.6443]
[1736581327479,2.6946,185.61,185.56,13.1136451]
[1736581327678,7.2144451,185.63,185.56,3.2041]
[1736581327979,7.2144451,185.61,185.56,3.2041]
[1736581329281,2.6947,185.6,185.56,3.2041]
[1736581330670,7.80893639,185.68,185.56,3.2041]
[1736581330875,2.6944,185.62,185.56,3.2041]
[1736581331879,7.2144451,185.64,185.57,7.2144451]
[1736581332082,7.2144451,185.64,185.58,1.6814]
[1736581333086,9.9085451,185.64,185.58,4.3761]
[1736581333285,7.2144451,185.64,185.58,4.3761]
[1736581334183,2.6942,185.63,185.58,4.3761]
[1736581336787,7.2144451,185.64,185.56,5.8992]
[1736581336788,2.6944,185.61,185.56,5.8992]
[1736581337092,7.2144451,185.62,185.56,10.4185451]
[1736581337293,2.6946,185.6,185.56,10.4185451]
[1736581337489,7.2144451,185.62,185.56,10.4185451]
[1736581338290,174.96596593,185.69,185.58,7.2144451]
[1736581338491,2.6942,185.63,185.58,7.2144451]
[1736581341494,2.6945,185.61,185.56,10.4185451]
[1736581342398,7.2144451,185.62,185.56,10.4185451]
[1736581342594,2.6946,185.6,185.56,10.4185451]
[1736581343397,7.2144451,185.6,185.56,3.2041]
[1736581343597,2.6948,185.59,185.56,3.2041]
[1736581345401,7.2144451,185.6,185.56,3.2041]
[1736581345996,2.695,185.58,185.56,3.2041]
[1736581349198,2.695,185.58,185.54,7.2144451]
[1736581349400,2.695,185.58,185.53,2.6956]
[1736581349401,2.6953,185.55,185.5,5.8982]
[1736581349600,2.6953,185.55,185.5,13.1126451]
[1736581350503,7.2144451,185.56,185.5,10.4166451]
[1736581350702,9.9096451,185.56,185.51,2.6959]
[1736581352507,7.2144451,185.56,185.5,3.2022]
[1736581352706,2.6954,185.55,185.5,13.1126451]
[1736581355806,9.9096451,185.56,185.5,13.1126451]
[1736581357614,7.82969347,185.62,185.54,7.2144451]
[1736581357801,17.73853857,185.62,185.56,9.9096451]
[1736581358002,9.9088451,185.62,185.56,7.2144451]
[1736581358302,149.10893641,185.63,185.56,10.5460451]
[1736581358510,141.89449131,185.63,185.58,7.2144451]
[1736581358717,208.51064494,185.65,185.58,7.2144451]
[1736581360209,208.51064494,185.65,185.6,2.6946]
[1736581361312,201.29619984,185.65,185.6,2.6946]
[1736581361614,208.51064494,185.65,185.6,2.6946]
[1736581362314,13.51064494,185.65,185.6,2.6946]
[1736581362916,13.51064494,185.65,185.58,7.2144451]
[1736581363823,16.20454494,185.65,185.59,2.6947]
[1736581366814,9.9086451,185.63,185.57,2.695]
[1736581367215,8.99019984,185.65,185.59,2.6947]
[1736581367407,7.2144451,185.64,185.59,2.6947]
[1736581369913,6.29619984,185.65,185.6,2.6946]
[1736581372719,6.29619984,185.65,185.6,9.9090451]
[1736581376724,6.29619984,185.65,185.61,2.6944]
[1736581378726,6.29619984,185.65,185.6,7.2144451]
[1736581378930,141.89449131,185.73,185.64,7.2144451]
[1736581379129,7.2144451,185.72,185.66,7.2144451]
[1736581379723,149.10893641,185.74,185.66,7.2144451]
[1736581380235,151.80153641,185.74,185.68,2.6933]
[1736581380632,151.80153641,185.74,185.68,9.9077451]
[1736581380831,9.9070451,185.74,185.68,9.9077451]
[1736581382132,2.6927,185.73,185.68,7.2144451]
[1736581382332,7.2144451,185.72,185.64,4.8878]
[1736581382531,7.2144451,185.7,185.64,4.8878]
[1736581383328,9.9077451,185.7,185.64,7.5818]
[1736581385930,9.9077451,185.7,185.64,14.7962451]
[1736581387226,9.9071451,185.74,185.69,2.6933]
[1736581387427,7.2144451,185.74,185.68,7.2144451]
[1736581388235,2.6927,185.73,185.68,9.9078451]
[1736581390041,9.9070451,185.74,185.68,9.9078451]
[1736581393644,7.2144451,185.74,185.64,4.8878]
[1736581393841,2.6933,185.69,185.64,7.5817]
[1736581394042,7.2144451,185.68,185.64,3.2412]
[1736581394243,2.6937,185.67,185.61,9.9088451]
[1736581396049,9.9081451,185.66,185.61,2.6944]
[1736581403250,7.2144451,185.64,185.6,2.6946]
[1736581403853,7.2144451,185.64,185.58,2.6948]
[1736581404853,7.2144451,185.62,185.58,2.6948]
[1736581405047,7.2144451,185.62,185.56,2.6951]
[1736581406350,7.2144451,185.6,185.54,7.2144451]
[1736581407554,9.9091451,185.6,185.54,9.9098451]
[1736581407753,9.9091451,185.6,185.54,2.6954]
[1736581408049,7.2144451,185.58,185.52,7.2144451]
[1736581409053,7.2144451,185.58,185.53,2.6956]
[1736581410756,9.9093451,185.58,185.52,2.6957]
[1736581413047,2.6951,185.57,185.51,2.6959]
[1736581413252,7.2144451,185.56,185.51,2.6959]
[1736581414054,7.2144451,185.54,185.49,2.6961]
[1736581414249,7.2144451,185.5,185.34,22.46229189]
[1736581414449,7.2144451,185.5,185.44,7.2144451]
[1736581416151,7.2144451,185.5,185.39,1.5553]
[1736581416344,7.2144451,185.46,185.39,1.5553]
[1736581416543,7.2144451,185.46,185.39,8.7697451]
[1736581416747,7.2144451,185.46,185.4,2.6974]
[1736581417652,2.6965,185.47,185.41,7.2144451]
[1736581417847,7.2144451,185.48,185.41,7.2144451]
[1736581418047,7.2144451,185.48,185.41,9.9117451]
[1736581418246,7.2144451,185.48,185.41,2.6973]
[1736581418448,7.2144451,185.48,185.41,9.9117451]
[1736581419148,9.9108451,185.48,185.41,9.9117451]
[1736581419354,7.2144451,185.5,185.44,2.6969]
[1736581419957,9.9104451,185.5,185.43,7.2144451]
[1736581420252,7.2144451,185.48,185.43,7.2144451]
[1736581420458,7.2144451,185.48,185.4,7.2144451]
[1736581421956,7.2144451,185.48,185.41,2.6973]
[1736581422651,7.2144451,185.48,185.42,2.6972]
[1736581424152,9.9107451,185.48,185.42,2.6972]
[1736581424954,2.6965,185.47,185.4,9.9118451]
[1736581425649,7.2144451,185.46,185.4,9.9118451]